fUSD/lending_fUSD_20240913
["ID","MTS","AMOUNT","RATE_DAILY","PERIOD"]
[337938414,1726210266338,-1682.12,0.00014595,2]
[337938415,1726210266348,-671.56,0.00014595,2]
[337938416,1726210266357,-1031.13,0.00014595,2]
[337938417,1726210266366,-957.07,0.00014595,2]
[337938418,1726210266375,-500.0,0.00014595,2]
[337938419,1726210266385,-3171.09,0.00014595,2]
[337938420,1726210266394,-954.63,0.00014595,2]
[337938421,1726210266404,-538.41,0.00014595,2]
[337938422,1726210266413,-500.0,0.00014595,2]
[337938423,1726210266423,-2191.26,0.00014595,2]
[337938424,1726210266432,-1230.93,0.00014595,2]
[337938425,1726210266442,-500.0,0.00014595,2]
[337938426,1726210266454,-500.0,0.00014595,2]
[337938427,1726210266464,-1222.55,0.00014595,2]
[337938428,1726210266473,-500.0,0.00014595,2]
[337938429,1726210266483,-1738.87,0.00014595,2]
[337938430,1726210266493,-1816.7,0.00014595,2]
[337938431,1726210266505,-585.45,0.00014595,2]
[337938432,1726210266516,-500.0,0.00014595,2]
[337938433,1726210266527,-1552.23,0.00014595,2]
[337938434,1726210266538,-500.0,0.00014595,2]
[337938435,1726210266548,-657.88,0.00014595,2]
[337938436,1726210266558,-1737.39,0.00014595,2]
[337938437,1726210266568,-500.0,0.00014595,2]
[337938438,1726210266577,-2154.77,0.00014595,2]
[337938439,1726210266587,-1267.08,0.00014596,2]
[337938440,1726210266597,-650.09,0.00014596,2]
[337938441,1726210266606,-2220.15,0.00014596,2]
[337938442,1726210266616,-2541.68,0.00014596,2]
[337938443,1726210266626,-3221.15,0.00014596,2]
[337938444,1726210266635,-2126.3,0.00014596,2]
[337938445,1726210266644,-2645.59,0.00014596,2]
[337938446,1726210266654,-814.66,0.00014596,2]
[337938447,1726210266663,-2421.89,0.00014596,2]
[337938448,1726210266673,-500.0,0.00014596,2]
[337938449,1726210266682,-917.81,0.00014596,2]
[337938450,1726210266691,-1603.44,0.00014596,2]
[337938451,1726210266700,-3115.24,0.00014596,2]
[337938452,1726210266709,-200.0,0.000146,2]
[337938453,1726210266718,-1208.0050836,0.0001463,2]
[337938454,1726210266727,-1001.8,0.0001464,2]
[337938455,1726210266738,-20607.21550417,0.00014661,2]
[337938456,1726210266749,-4517.9936416,0.00014679,2]
[337938457,1726210266759,-9787.9421396,0.00014679,2]
[337938458,1726210266772,-1949.6405616,0.00014679,2]
[337938459,1726210266782,-313.94,0.0001468,2]
[337938460,1726210266791,-11771.01454458,0.00014686,2]
[337938461,1726210266800,-200000.0,0.00014689,2]
[337938462,1726210266809,-100459.13004078,0.00014689,2]
[337938463,1726210266819,-137678.94585737,0.00014689,2]
[337938464,1726210266828,-12242.23455189,0.00014689,2]
[337938465,1726210266837,-200.0,0.000147,2]
[337938466,1726210266846,-1000.0,0.000147,2]
[337938467,1726210266855,-1000.0,0.000147,2]
[337938468,1726210266865,-200.0,0.000147,2]
[337938469,1726210266874,-1000.0,0.000147,2]
[337938470,1726210266884,-1000.0,0.000147,2]
[337938471,1726210266895,-2010.4568379,0.000147,2]
[337938472,1726210266904,-200.0,0.000147,2]
[337938473,1726210266914,-1000.0,0.000147,2]
[337938474,1726210266925,-1000.0,0.000147,2]
[337938475,1726210266934,-1031.8714,0.000147,2]
[337938476,1726210266943,-1000.0,0.000147,2]
[337938477,1726210266953,-1000.0,0.000147,2]
[337938478,1726210266963,-1000.0,0.000147,2]
[337938479,1726210266973,-5000.0,0.000147,2]
[337938480,1726210266982,-150.0,0.000147,2]
[337938481,1726210266992,-2000.0,0.000147,30]
[337938482,1726210267004,-2426.688346,0.0001471,30]
[337938483,1726210267016,-500.0,0.00014732,2]
[337938484,1726210267025,-500.0,0.00014741,2]
[337938485,1726210267034,-999.999999,0.00014748,2]
[337938486,1726210267044,-500.0,0.0001475,2]
[337938487,1726210267053,-200.0,0.00014751,2]
[337938488,1726210267063,-500.0,0.00014759,2]
[337938489,1726210267073,-3892.4890874,0.00014767,2]
[337938490,1726210267083,-6991.3872426,0.00014767,2]
[337938491,1726210267093,-1382.0364535,0.00014767,2]
[337938492,1726210267103,-500.0,0.00014768,2]
[337938493,1726210267112,-500.0,0.00014768,2]
[337938494,1726210267121,-680.57,0.00014769,2]
[337938495,1726210267130,-500.0,0.00014769,2]
[337938496,1726210267140,-35928.76,0.00014769,2]
[337938497,1726210267149,-2132.67,0.00014769,2]
[337938498,1726210267158,-804.78,0.00014769,2]
[337938499,1726210267167,-5059.77,0.00014769,2]
[337938500,1726210267177,-1247.6,0.00014769,2]
[337938501,1726210267186,-637.81,0.00014769,2]
[337938502,1726210267195,-1040.49,0.00014769,2]
[337938503,1726210267205,-1436.71,0.00014769,2]
[337938504,1726210267214,-500.0,0.00014769,2]
[337938505,1726210267223,-1874.87,0.00014769,2]
[337938506,1726210267233,-3033.76,0.00014769,2]
[337938507,1726210267242,-978.85,0.00014769,2]
[337938508,1726210267252,-1459.79,0.00014769,2]
[337938509,1726210267262,-1787.21,0.00014769,2]
[337938510,1726210267281,-2770.49,0.00014769,2]
[337938511,1726210267290,-2126.29,0.00014769,2]
[337938512,1726210267299,-8023.77,0.00014769,2]
[337938513,1726210267309,-1691.04,0.00014769,2]
[337938514,1726210267318,-2782.85,0.00014769,2]
[337938515,1726210267327,-2344.85,0.00014769,2]
[337938516,1726210267337,-3034.42,0.00014769,2]
[337938517,1726210267346,-2091.4,0.00014769,2]
[337938518,1726210267355,-528.93,0.00014769,2]
[337938519,1726210267364,-1215.6,0.00014769,2]
[337938520,1726210267373,-1547.58,0.00014769,2]
[337938521,1726210267382,-4867.36,0.00014769,2]
[337938522,1726210267391,-5690.42,0.00014769,2]
[337938523,1726210267400,-771.97,0.00014769,2]
[337938524,1726210267409,-2160.65,0.00014769,2]
[337938525,1726210267418,-2032.81,0.00014769,2]
[337938526,1726210267427,-7869.74,0.00014769,2]
[337938527,1726210267437,-29975.64,0.00014769,2]
[337938528,1726210267449,-1347.86,0.00014769,2]
[337938529,1726210267459,-1834.03,0.00014769,2]
[337938530,1726210267469,-7109.28,0.00014769,2]
[337938531,1726210267478,-1788.3,0.00014769,2]
[337938532,1726210267488,-1806.63,0.00014769,2]
[337938533,1726210267497,-1542.67,0.00014769,2]
[337938534,1726210267506,-6264.05,0.00014769,2]
[337938535,1726210267518,-1042.36,0.00014769,2]
[337938536,1726210267528,-1099.93,0.00014769,2]
[337938537,1726210267537,-2655.07,0.00014769,2]
[337938538,1726210267546,-4708.25,0.00014769,2]
[337938539,1726210267556,-2372.4,0.00014769,2]
[337938540,1726210267565,-783.77,0.00014769,2]
[337938541,1726210267574,-6725.33,0.00014769,2]
[337938542,1726210267584,-5623.03,0.00014769,2]
[337938543,1726210267593,-586.52,0.00014769,2]
[337938544,1726210267603,-2909.95,0.00014769,2]
[337938545,1726210267611,-906.93,0.00014769,2]
[337938546,1726210267621,-526.39,0.00014769,2]
[337938547,1726210267630,-500.0,0.00014769,2]
[337938548,1726210267639,-506.41,0.00014769,2]
[337938549,1726210267648,-4737.4,0.00014769,2]
[337938550,1726210267657,-849.22,0.00014769,2]
[337938551,1726210267666,-500.0,0.00014776,2]
[337938552,1726210267675,-500.0,0.00014776,2]
[337938553,1726210267685,-61611.63683681,0.00014777,2]
[337938554,1726210267694,-500.0,0.00014785,2]
[337938555,1726210267703,-500.0,0.00014785,2]
[337938556,1726210267712,-201.0,0.0001479,2]
[337938557,1726210267721,-222.0,0.0001479,2]
[337938558,1726210267730,-3745.63206193,0.00014793,2]
[337938559,1726210267739,-150.0,0.00014793,2]
[337938560,1726210267748,-1583.0,0.00014794,2]
[337938561,1726210267757,-500.0,0.00014794,2]
[337938562,1726210267770,-500.0,0.00014794,2]
[337938563,1726210267779,-1148.38064164,0.00014798,2]
[337938564,1726210267788,-411.90281316,0.00014798,2]
[337938565,1726210267797,-158.8746436,0.00014798,2]
[337938566,1726210267806,-502.05420673,0.000148,20]
[337938567,1726210267815,-393563.00626693,0.000148,7]
[337938568,1726210267824,-400.0,0.000148,5]
[337938569,1726210267834,-3000.0,0.000148,2]
[337938570,1726210267843,-10005.0,0.000148,2]
[337938571,1726210267852,-289.28,0.00014807,2]
[337938572,1726210267862,-8500.0,0.00014834,2]
[337938573,1726210267871,-500.0,0.00014835,2]
[337938574,1726210267880,-285.55,0.00014836,2]
[337938575,1726210267889,-500.0,0.00014836,2]
[337938576,1726210267898,-500.0,0.00014841,2]
[337938577,1726210267908,-500.0,0.00014842,2]
[337938578,1726210267917,-500.0,0.00014842,2]
[337938579,1726210267926,-480.7366928,0.00014843,2]
[337938580,1726210267936,-840.0,0.00014849,2]
[337938581,1726210267946,-28696.31113926,0.0001486,2]
[337938582,1726210267955,-500.0,0.00014866,2]
[337938583,1726210267965,-1644.65,0.00014866,2]
[337938584,1726210267974,-500.0,0.00014866,2]
[337938585,1726210267984,-936.11,0.00014866,2]
[337938586,1726210267993,-500.0,0.00014866,2]
[337938587,1726210268002,-500.0,0.00014866,2]
[337938588,1726210268013,-1410.91,0.00014866,2]
[337938589,1726210268023,-596.6,0.00014866,2]
[337938590,1726210268032,-280.95402262,0.00014866,2]
[337938591,1726210268041,-500.0,0.00014866,2]
[337938592,1726210268050,-500.0,0.00014866,2]
[337938593,1726210268059,-500.0,0.00014866,2]
[337938594,1726210268068,-500.0,0.00014866,2]
[337938595,1726210268077,-500.0,0.00014866,2]
[337938596,1726210268086,-500.0,0.00014866,2]
[337938597,1726210268095,-500.0,0.00014866,2]
[337938598,1726210268104,-997.65,0.00014866,2]
[337938599,1726210268114,-500.0,0.00014866,2]
[337938600,1726210268123,-500.0,0.00014866,2]
[337938601,1726210268132,-734.84,0.00014866,2]
[337938602,1726210268141,-960.8,0.00014866,2]
[337938603,1726210268150,-500.0,0.00014866,2]
[337938604,1726210268159,-500.0,0.00014866,2]
[337938605,1726210268168,-500.0,0.00014866,2]
[337938606,1726210268177,-1376.85,0.00014867,2]
[337938607,1726210268186,-724.24,0.00014867,2]
[337938608,1726210268195,-880.44,0.00014867,2]
[337938609,1726210268204,-1721.18,0.00014867,2]
[337938610,1726210268214,-500.0,0.00014867,2]
[337938611,1726210268223,-547.76,0.00014867,2]
[337938612,1726210268232,-1645.89,0.00014867,2]
[337938613,1726210268241,-500.0,0.00014867,2]
[337938614,1726210268250,-1337.47,0.00014867,2]
[337938615,1726210268259,-1862.11,0.00014867,2]
[337938616,1726210268271,-500.0,0.00014867,2]
[337938617,1726210268279,-1841.96,0.00014867,2]
[337938618,1726210268288,-1895.48,0.00014867,2]
[337938619,1726210268298,-500.0,0.00014867,2]
[337938620,1726210268307,-910.45,0.00014867,2]
[337938621,1726210268316,-500.0,0.00014867,2]
[337938622,1726210268325,-500.0,0.00014867,2]
[337938623,1726210268335,-1398.42,0.00014867,2]
[337938624,1726210268344,-543.42,0.00014867,2]
[337938625,1726210268354,-1068.71,0.00014867,2]
[337938626,1726210268363,-2162.4,0.00014867,2]
[337938627,1726210268372,-1012.56,0.00014867,2]
[337938628,1726210268381,-500.0,0.00014867,2]
[337938629,1726210268391,-1453.0,0.00014867,2]
[337938630,1726210268399,-759.8,0.00014867,2]
[337938631,1726210268409,-1511.79,0.00014867,2]
[337938632,1726210268418,-500.0,0.00014867,2]
[337938633,1726210268427,-500.0,0.00014867,2]
[337938634,1726210268437,-1372.58,0.00014867,2]
[337938635,1726210268447,-2253.41,0.00014867,2]
[337938636,1726210268460,-1650.95,0.00014867,2]
[337938637,1726210268469,-967.77,0.00014867,2]
[337938638,1726210268478,-500.0,0.00014867,2]
[337938639,1726210268488,-615.13,0.00014867,2]
[337938640,1726210268499,-1177.63,0.00014867,2]
[337938641,1726210268508,-1989.31,0.00014867,2]
[337938642,1726210268519,-1028.91,0.00014867,2]
[337938643,1726210268531,-1740.08,0.00014867,2]
[337938644,1726210268540,-863.13,0.00014867,2]
[337938645,1726210268550,-1948.81,0.00014867,2]
[337938646,1726210268559,-1226.1,0.00014867,2]
[337938647,1726210268570,-998.62,0.00014867,2]
[337938648,1726210268579,-1094.97,0.00014867,2]
[337938649,1726210268589,-544.73,0.00014867,2]
[337938650,1726210268599,-993.64,0.00014867,2]
[337938651,1726210268608,-881.36,0.00014867,2]
[337938652,1726210268618,-1712.74,0.00014867,2]
[337938653,1726210268627,-795.65,0.00014867,2]
[337938654,1726210268637,-748.28,0.00014867,2]
[337938655,1726210268646,-500.0,0.00014867,2]
[337938656,1726210268656,-2044.23,0.00014867,2]
[337938657,1726210268664,-663.12,0.00014867,2]
[337938658,1726210268674,-500.0,0.00014867,2]
[337938659,1726210268683,-1782.19,0.00014867,2]
[337938660,1726210268692,-4907.89,0.00014867,2]
[337938661,1726210268702,-729.14,0.00014867,2]
[337938662,1726210268712,-736.59,0.00014867,2]
[337938663,1726210268721,-2453.01,0.00014867,2]
[337938664,1726210268730,-2282.41,0.00014867,2]
[337938665,1726210268739,-2759.94,0.00014867,2]
[337938666,1726210268749,-1975.26,0.00014867,2]
[337938667,1726210268758,-1604.79,0.00014867,2]
[337938668,1726210268770,-500.0,0.00014867,2]
[337938669,1726210268779,-3130.36,0.00014867,2]
[337938670,1726210268788,-500.0,0.00014867,2]
[337938671,1726210268797,-500.0,0.00014867,2]
[337938672,1726210268806,-510.03,0.00014867,2]
[337938673,1726210268815,-1512.28,0.00014867,2]
[337938674,1726210268824,-699.63,0.00014867,2]
[337938675,1726210268833,-1751.87,0.00014867,2]
[337938676,1726210268842,-957.91,0.00014867,2]
[337938677,1726210268852,-3257.95,0.00014867,2]
[337938678,1726210268861,-3217.86,0.00014867,2]
[337938679,1726210268871,-500.0,0.00014867,2]
[337938680,1726210268879,-2735.9,0.00014867,2]
[337938681,1726210268888,-693.65,0.00014867,2]
[337938682,1726210268897,-1440.25,0.00014867,2]
[337938683,1726210268906,-500.0,0.00014867,2]
[337938684,1726210268916,-500.0,0.00014867,2]
[337938685,1726210268925,-4839.81,0.00014867,2]
[337938686,1726210268934,-4971.08,0.00014867,2]
[337938687,1726210268943,-2576.61,0.00014867,2]
[337938688,1726210268952,-839.24,0.00014867,2]
[337938689,1726210268962,-1921.46,0.00014867,2]
[337938690,1726210268971,-733.53,0.00014867,2]
[337938691,1726210268980,-2281.46,0.00014867,2]
[337938692,1726210268989,-2052.83,0.00014867,2]
[337938693,1726210268999,-1631.43,0.00014867,2]
[337938694,1726210269008,-1705.5,0.00014867,2]
[337938695,1726210269018,-500.0,0.00014867,2]
[337938696,1726210269028,-500.0,0.00014867,2]
[337938697,1726210269037,-3678.43,0.00014867,2]
[337938698,1726210269049,-1759.02,0.00014867,2]
[337938699,1726210269060,-1651.73,0.00014867,2]
[337938700,1726210269069,-1556.19,0.00014867,2]
[337938701,1726210269079,-2571.0,0.00014867,2]
[337938702,1726210269088,-1770.67,0.00014867,2]
[337938703,1726210269098,-500.0,0.00014867,2]
[337938704,1726210269107,-1895.57,0.00014867,2]
[337938705,1726210269117,-2418.89,0.00014867,2]
[337938706,1726210269127,-4742.76,0.00014867,2]
[337938707,1726210269138,-923.0,0.00014868,2]
[337938708,1726210269148,-2066.33,0.00014868,2]
[337938709,1726210269159,-500.0,0.00014868,2]
[337938710,1726210269168,-662.92,0.00014868,2]
[337938711,1726210269178,-1696.35,0.00014868,2]
[337938712,1726210269187,-3291.14,0.00014868,2]
[337938713,1726210269196,-646.73,0.00014868,2]
[337938714,1726210269205,-2947.87,0.00014868,2]
[337938715,1726210269215,-1958.91,0.00014868,2]
[337938716,1726210269224,-40201.89,0.00014868,2]
[337938717,1726210269233,-1742.06,0.00014868,2]
[337938718,1726210269242,-1669.15,0.00014868,2]
[337938719,1726210269251,-1516.56,0.00014868,2]
[337938720,1726210269261,-1733.7,0.00014868,2]
[337938721,1726210269271,-1708.6,0.00014868,2]
[337938722,1726210269281,-1028.33,0.00014868,2]
[337938723,1726210269290,-1725.47,0.00014868,2]
[337938724,1726210269299,-3043.32,0.00014868,2]
[337938725,1726210269308,-1431.38,0.00014868,2]
[337938726,1726210269317,-2247.09,0.00014868,2]
[337938727,1726210269326,-4075.67,0.00014868,2]
[337938728,1726210269336,-744.35,0.00014868,2]
[337938729,1726210269345,-595.67,0.00014868,2]
[337938730,1726210269355,-7041.33,0.00014868,2]
[337938731,1726210269364,-27141.69,0.00014868,2]
[337938732,1726210269374,-3829.82,0.00014868,2]
[337938733,1726210269383,-8755.15,0.00014868,2]
[337938734,1726210269392,-1910.92,0.00014868,2]
[337938735,1726210269402,-2566.71,0.00014868,2]
[337938736,1726210269411,-762.72,0.00014868,2]
[337938737,1726210269420,-500.0,0.00014869,2]
[337938738,1726210269429,-890.6,0.00014869,2]
[337938739,1726210269439,-556.69,0.00014869,2]
[337938740,1726210269449,-500.0,0.00014869,2]
[337938741,1726210269461,-500.0,0.00014869,2]
[337938742,1726210269470,-599.04,0.00014869,2]
[337938743,1726210269479,-1296.24,0.00014869,2]
[337938744,1726210269489,-500.0,0.00014869,2]
[337938745,1726210269499,-500.0,0.00014869,2]
[337938746,1726210269508,-500.0,0.00014869,2]
[337938747,1726210269518,-1438.2,0.00014869,2]
[337938748,1726210269528,-1224.7,0.00014869,2]
[337938749,1726210269538,-1037.91,0.00014869,2]
[337938750,1726210269548,-500.0,0.00014869,2]
[337938751,1726210269557,-500.0,0.00014869,2]
[337938752,1726210269566,-500.0,0.00014869,2]
[337938753,1726210269576,-500.0,0.00014869,2]
[337938754,1726210269585,-500.0,0.00014869,2]
[337938755,1726210269594,-926.48,0.00014869,2]
[337938756,1726210269603,-500.0,0.00014869,2]
[337938757,1726210269613,-956.52,0.00014869,2]
[337938758,1726210269622,-569.29,0.00014869,2]
[337938759,1726210269631,-695.38,0.00014869,2]
[337938760,1726210269640,-849.05,0.00014869,2]
[337938761,1726210269649,-960.69,0.00014869,2]
[337938762,1726210269658,-500.0,0.00014869,2]
[337938763,1726210269667,-500.0,0.00014869,2]
[337938764,1726210269677,-2228.05,0.00014869,2]
[337938765,1726210269686,-852.38,0.00014869,2]
[337938766,1726210269695,-3382.98,0.00014869,2]
[337938767,1726210269704,-1913.65,0.00014869,2]
[337938768,1726210269713,-1255.86,0.00014869,2]
[337938769,1726210269722,-1161.32,0.00014869,2]
[337938770,1726210269731,-1697.12,0.00014869,2]
[337938771,1726210269740,-1652.42,0.00014869,2]
[337938772,1726210269750,-1654.67,0.00014869,2]
[337938773,1726210269759,-1645.26,0.00014869,2]
[337938774,1726210269770,-1222.06,0.00014869,2]
[337938775,1726210269780,-1197.59,0.00014869,2]
[337938776,1726210269789,-751.98,0.00014869,2]
[337938777,1726210269909,-1332.16,0.00014869,2]
[337938778,1726210269919,-500.0,0.00014869,2]
[337938779,1726210269928,-500.0,0.00014869,2]
[337938780,1726210269938,-3139.26,0.00014869,2]
[337938781,1726210269948,-539.22,0.00014869,2]
[337938782,1726210269957,-1200.96,0.00014869,2]
[337938783,1726210269966,-2280.8,0.00014869,2]
[337938784,1726210269975,-500.0,0.00014869,2]
[337938785,1726210269985,-1028.49,0.00014869,2]
[337938786,1726210269995,-1816.35,0.00014869,2]
[337938787,1726210270004,-2740.22,0.00014869,2]
[337938788,1726210270014,-1710.12,0.00014869,2]
[337938789,1726210270023,-1331.66,0.00014869,2]
[337938790,1726210270032,-431.4356163,0.00014869,2]
[337938791,1726210270041,-685.49,0.00014869,2]
[337938792,1726210270051,-644.85,0.00014869,2]
[337938793,1726210270061,-1523.78,0.00014869,2]
[337938794,1726210270070,-500.0,0.00014869,2]
[337938795,1726210270079,-891.22,0.00014869,2]
[337938796,1726210270089,-500.0,0.00014869,2]
[337938797,1726210270098,-779.04,0.00014869,2]
[337938798,1726210270108,-751.18,0.00014869,2]
[337938799,1726210270118,-500.0,0.00014869,2]
[337938800,1726210270127,-2429.77,0.00014869,2]
[337938801,1726210270137,-500.0,0.00014869,2]
[337938802,1726210270146,-1454.87,0.00014869,2]
[337938803,1726210270156,-684.01,0.00014869,2]
[337938804,1726210270165,-562.56,0.00014869,2]
[337938805,1726210270175,-2187.28,0.00014869,2]
[337938806,1726210270184,-500.0,0.00014869,2]
[337938807,1726210270194,-1373.53,0.00014869,2]
[337938808,1726210270203,-500.0,0.00014869,2]
[337938809,1726210270213,-500.0,0.00014869,2]
[337938810,1726210270222,-657.39,0.00014869,2]
[337938811,1726210270232,-579.86,0.00014869,2]
[337938812,1726210270242,-1321.01,0.00014869,2]
[337938813,1726210270252,-516.09,0.00014869,2]
[337938814,1726210270262,-500.0,0.00014869,2]
[337938815,1726210270271,-500.0,0.00014869,2]
[337938816,1726210270281,-791.86,0.00014869,2]
[337938817,1726210270290,-634.09,0.00014869,2]
[337938818,1726210270300,-1453.89,0.00014869,2]
[337938819,1726210270309,-1772.65,0.00014869,2]
[337938820,1726210270318,-671.19,0.00014869,2]
[337938821,1726210270327,-500.0,0.00014869,2]
[337938822,1726210270337,-614.95,0.00014869,2]
[337938823,1726210270347,-557.22,0.00014869,2]
[337938824,1726210270356,-1682.12,0.00014869,2]
[337938825,1726210270365,-671.56,0.00014869,2]
[337938826,1726210270375,-1031.13,0.00014869,2]
[337938827,1726210270385,-957.07,0.00014869,2]
[337938828,1726210270394,-500.0,0.00014869,2]
[337938829,1726210270404,-3171.09,0.00014869,2]
[337938830,1726210270414,-954.63,0.00014869,2]
[337938831,1726210270423,-538.41,0.00014869,2]
[337938832,1726210270433,-500.0,0.00014869,2]
[337938833,1726210270442,-2191.26,0.00014869,2]
[337938834,1726210270454,-1230.93,0.00014869,2]
[337938835,1726210270464,-500.0,0.00014869,2]
[337938836,1726210270474,-500.0,0.00014869,2]
[337938837,1726210270483,-1222.55,0.00014869,2]
[337938838,1726210270494,-500.0,0.00014869,2]
[337938839,1726210270503,-1738.87,0.00014869,2]
[337938840,1726210270513,-1816.7,0.00014869,2]
[337938841,1726210270523,-585.45,0.00014869,2]
[337938842,1726210270534,-500.0,0.00014869,2]
[337938843,1726210270544,-1552.23,0.00014869,2]
[337938844,1726210270553,-500.0,0.00014869,2]
[337938845,1726210270563,-657.88,0.00014869,2]
[337938846,1726210270573,-1737.39,0.00014869,2]
[337938847,1726210270583,-247.42037354,0.00014869,2]
[337938848,1726210270594,-2154.77,0.00014869,2]
[337938849,1726210270604,-332.89307204,0.0001487,2]
[337938850,1726210270613,-1267.08,0.0001487,2]
[337938851,1726210270625,-650.09,0.0001487,2]
[337938852,1726210270634,-2220.15,0.0001487,2]
[337938853,1726210270644,-2541.68,0.0001487,2]
[337938854,1726210270653,-3221.15,0.0001487,2]
[337938855,1726210270662,-2126.3,0.0001487,2]
[337938856,1726210270672,-2645.59,0.0001487,2]
[337938857,1726210270681,-814.66,0.0001487,2]
[337938858,1726210270691,-2421.89,0.0001487,2]
[337938859,1726210270700,-500.0,0.0001487,2]
[337938860,1726210270709,-917.81,0.0001487,2]
[337938861,1726210270719,-1603.44,0.0001487,2]
[337938862,1726210270728,-3115.24,0.0001487,2]
[337938863,1726210270738,-1000.0,0.00014873,2]
[337938864,1726210270747,-5294.84503593,0.00014873,3]
[337938865,1726210270757,-692.47032031,0.00014873,3]
[337938866,1726210270767,-3194689.27142336,0.00014873,2]
[337938867,1726210271061,-1301.775,0.00014873,2]
[337938868,1726210271075,-655.6964493,0.00014873,2]
[337938869,1726210271087,-500.0,0.00014873,2]
[337938870,1726210271106,-1014.07,0.00013673,2]
[337938871,1726210271115,-2485.93,0.00014873,2]
[337938872,1726210271496,-500.0,0.00012951,2]
[337938873,1726210272924,-793.64,0.00012951,2]
[337938874,1726210272934,-1293.64,0.00013225,2]
[337938875,1726210272944,-1293.64,0.00013499,2]
[337938876,1726210272953,-6921.49,0.000137,2]
[337938877,1726210272963,-6921.49,0.000137,2]
[337938878,1726210272973,-6921.49,0.000137,2]
[337938879,1726210272983,-710.9189465,0.000137,2]
[337938880,1726210272998,-715.36994382,0.000137,2]
[337938881,1726210273018,-5495.20110968,0.000137,2]
[337938882,1726210273028,-1293.64,0.00013773,2]
[337938883,1726210273038,-1014.07,0.00013947,2]
[337938884,1726210273048,-1293.64,0.00014047,2]
[337938885,1726210273058,-1014.07,0.00014221,2]
[337938886,1726210273068,-1000.0,0.000143,2]
[337938887,1726210273077,-1293.64,0.00014321,2]
[337938888,1726210273087,-1014.07,0.00014495,2]
[337938889,1726210273096,-2281.98,0.00014593,2]
[337938890,1726210273106,-1293.64,0.00014595,2]
[337938891,1726210273116,-1014.07,0.00014769,2]
[337938892,1726210273126,-2281.98,0.00014867,2]
[337938893,1726210273136,-1293.64,0.00014869,2]
[337938894,1726210273145,-812957.56339669,0.00014873,2]
[337938895,1726210273158,-3655.88049303,0.00014873,2]
[337938896,1726210273170,-931.13278959,0.00014873,2]
[337938897,1726210273557,-150.0,0.00014192,2]
[337938898,1726210273568,-4239.92871911,0.00014873,2]
[337938899,1726210273579,-1740.74654837,0.00014873,2]
[337938900,1726210273591,-7533.79919372,0.00014873,2]
[337938901,1726210273602,-303.65611913,0.00014873,2]
[337938902,1726210273613,-1580.85761632,0.00014873,2]
[337938903,1726210273624,-1421.4756318,0.00014873,2]
[337938904,1726210273635,-609.53823585,0.00014873,2]
[337938905,1726210273647,-1295.87497203,0.00014873,2]
[337938906,1726210273658,-22015.21942346,0.00014873,2]
[337938907,1726210273669,-8924.9356803,0.00014873,2]
[337938908,1726210273680,-2227.32105604,0.00014873,2]
[337938909,1726210273692,-553.56974129,0.00014873,2]
[337938910,1726210273704,-3666.82998998,0.00014873,2]
[337938911,1726210273715,-458.27649239,0.00014873,2]
[337938912,1726210273727,-5143.26,0.00014873,2]
[337938913,1726210273738,-2438.53564919,0.00014873,2]